bitfinex-derivatives/quotes_BTCF0:USTF0_20250910
["timestamp","ask_amount","ask_price","bid_price","bid_amount"]
[1757522429046,1.06444057,113720.0,113710.0,0.001]
[1757522429547,1.06444057,113720.0,113710.0,0.11799471]
[1757522430142,1.06444057,113720.0,113710.0,0.14089471]
[1757522430345,0.94744586,113720.0,113710.0,0.14089471]
[1757522430554,1.06444057,113720.0,113710.0,0.14089471]
[1757522430950,0.94744586,113720.0,113710.0,0.14089471]
[1757522431143,1.06444057,113720.0,113710.0,0.14089471]
[1757522431742,0.94744586,113720.0,113710.0,0.14089471]
[1757522432252,0.99459388,113720.0,113710.0,0.14089471]
[1757522433151,0.99459388,113720.0,113710.0,0.11799471]
[1757522433553,0.99459388,113720.0,113710.0,0.14089471]
[1757522433756,0.99431388,113720.0,113710.0,0.14089471]
[1757522434243,0.99431388,113720.0,113710.0,0.0239]
[1757522434447,0.99431388,113720.0,113710.0,0.14089471]
[1757522435152,0.99431388,113720.0,113710.0,0.0239]
[1757522435340,0.99431388,113720.0,113710.0,0.14089471]
[1757522436256,0.99436944,113720.0,113710.0,0.14089471]
[1757522436458,1.11136415,113720.0,113710.0,0.11799471]
[1757522436757,1.06416057,113720.0,113710.0,0.11799471]
[1757522437242,1.06416057,113720.0,113710.0,0.001]
[1757522437447,1.06416057,113720.0,113710.0,0.11799471]
[1757522438356,1.06416057,113720.0,113710.0,0.001]
[1757522441962,1.12711288,113720.0,113710.0,0.001]
[1757522442163,1.1113976,113720.0,113710.0,0.001]
[1757522443258,1.43115528,113720.0,113710.0,0.001]
[1757522444558,1.49410759,113720.0,113710.0,0.001]
[1757522444860,1.43115528,113720.0,113710.0,0.001]
[1757522445066,1.43087528,113720.0,113710.0,0.001]
[1757522448068,1.43075528,113720.0,113710.0,0.001]
[1757522450578,1.43063528,113720.0,113710.0,0.001]
[1757522451078,0.61635528,113720.0,113710.0,0.001]
[1757522451378,1.47785174,113720.0,113710.0,0.001]
[1757522452176,1.43063528,113720.0,113710.0,0.001]
[1757522452369,0.01391,113700.0,113690.0,0.01791608]
[1757522452574,0.86912343,113700.0,113690.0,0.13491079]
[1757522452776,0.86912343,113700.0,113690.0,0.15647079]
[1757522453881,0.87112343,113700.0,113690.0,0.15747079]
[1757522454685,0.87212343,113700.0,113690.0,0.15747079]
[1757522456884,0.98911814,113700.0,113690.0,0.01891608]
[1757522457077,0.87212343,113700.0,113690.0,0.01891608]
[1757522457279,0.87212343,113700.0,113690.0,0.13591079]
[1757522457680,0.87212343,113700.0,113690.0,0.15747079]
[1757522459886,0.05784343,113700.0,113690.0,0.15747079]
[1757522460086,0.87188343,113700.0,113690.0,0.15747079]
[1757522460286,0.05784343,113700.0,113690.0,0.15747079]
[1757522460680,0.87184343,113700.0,113690.0,0.15747079]
[1757522463088,0.05784343,113700.0,113690.0,0.15747079]
[1757522463289,0.64564343,113700.0,113690.0,0.2744655]
[1757522463786,0.87176343,113700.0,113690.0,0.5244655]
[1757522463986,0.87176343,113700.0,113690.0,0.40747079]
[1757522464991,0.87176343,113700.0,113690.0,0.29735608]
[1757522465192,0.04393343,113700.0,113690.0,0.5313455]
[1757522466095,0.05784343,113700.0,113690.0,0.5313455]
[1757522468492,0.05784343,113700.0,113690.0,0.5244655]
[1757522472199,0.10505687,113700.0,113690.0,0.5244655]
[1757522474304,0.09114687,113700.0,113690.0,0.64838942]
[1757522474497,0.04393343,113700.0,113690.0,0.64838942]
[1757522474707,0.02178343,113700.0,113690.0,0.91184369]
[1757522474892,0.06756237,113710.0,113690.0,0.91184369]
[1757522475094,0.03914261,113710.0,113700.0,0.89954981]
[1757522475295,0.01879368,113710.0,113700.0,0.89954981]
[1757522475704,0.01879368,113710.0,113700.0,1.71306981]
[1757522476004,0.02079368,113710.0,113700.0,1.71306981]
[1757522476398,0.02079368,113710.0,113700.0,1.62510001]
[1757522476604,0.02379368,113710.0,113700.0,1.62610001]
[1757522477392,0.02379368,113710.0,113700.0,1.63491671]
[1757522477999,0.02179368,113710.0,113700.0,1.70410965]
[1757522478202,0.02379368,113710.0,113700.0,1.79203945]
[1757522479503,0.04508821,113740.0,113730.0,0.02156]
[1757522479707,0.04508821,113740.0,113730.0,0.37259334]
[1757522480006,0.03648,113740.0,113730.0,0.37259334]
[1757522480202,0.02257,113740.0,113730.0,0.37947334]
[1757522480507,0.00042,113740.0,113730.0,0.37947334]
[1757522480700,0.00042,113740.0,113730.0,0.38047334]
[1757522480701,0.00942,113740.0,113730.0,0.38047334]
[1757522480903,0.03157,113740.0,113730.0,0.02944]
[1757522481206,0.03122,113740.0,113730.0,0.38047334]
[1757522481808,0.04422,113740.0,113730.0,0.37359334]
[1757522482104,0.04122,113740.0,113730.0,0.37259334]
[1757522482608,0.02522,113740.0,113730.0,0.37947334]
[1757522482813,0.02522,113740.0,113730.0,0.38047334]
[1757522483808,0.02222,113740.0,113730.0,0.38147334]
[1757522484910,0.00042,113740.0,113730.0,0.38147334]
[1757522487412,0.00042,113740.0,113730.0,1.19455334]
[1757522488912,0.00042,113740.0,113730.0,0.38147334]
[1757522489111,0.00042,113740.0,113730.0,1.07099334]
[1757522493916,0.00042,113740.0,113730.0,1.19435334]
[1757522495914,0.00042,113740.0,113730.0,1.36987001]
[1757522496216,0.00042,113740.0,113730.0,1.19435334]
[1757522500123,0.00042,113740.0,113730.0,0.38147334]
[1757522500320,0.03522,113740.0,113730.0,1.06619334]
[1757522500626,0.03522,113740.0,113730.0,0.37459334]
[1757522500814,0.03522,113740.0,113730.0,1.06083334]
[1757522502423,0.03522,113740.0,113730.0,0.37459334]
[1757522502623,0.03522,113740.0,113730.0,1.18727334]
[1757522504024,0.03522,113740.0,113730.0,1.18723334]
[1757522505424,0.03522,113740.0,113730.0,0.8362]
[1757522505620,0.03522,113740.0,113730.0,1.18719334]
[1757522505924,0.03522,113740.0,113730.0,0.37459334]
[1757522506326,0.03522,113740.0,113730.0,0.02356]
[1757522506527,0.03522,113740.0,113730.0,0.37459334]
[1757522510422,0.08243344,113740.0,113730.0,0.37459334]
[1757522511122,0.08243344,113740.0,113730.0,0.02356]
[1757522511323,0.03522,113740.0,113730.0,0.37459334]
[1757522515924,0.03522,113740.0,113730.0,0.19907667]
[1757522516232,0.33243344,113740.0,113730.0,0.19907667]
[1757522516731,0.35131063,113740.0,113730.0,0.19907667]
[1757522517428,0.35131063,113740.0,113730.0,0.37459334]
[1757522519430,0.10131063,113740.0,113730.0,0.37459334]
[1757522519635,0.10131063,113740.0,113730.0,0.38147334]
[1757522520332,0.08831063,113740.0,113730.0,0.38147334]
[1757522522133,0.04109719,113740.0,113730.0,0.38147334]
[1757522522334,0.01929719,113740.0,113730.0,0.80699001]
[1757522522630,0.06337231,113740.0,113730.0,0.80699001]
[1757522522932,0.0822495,113740.0,113730.0,0.63147334]
[1757522523133,0.1049095,113740.0,113730.0,0.63147334]
[1757522523830,0.0892468,113740.0,113730.0,0.63147334]
[1757522525339,0.0665868,113740.0,113730.0,0.63147334]
[1757522527540,0.07911038,113760.0,113740.0,0.0352]
[1757522527746,0.10620233,113780.0,113770.0,0.0221]
[1757522527947,0.10620233,113780.0,113770.0,0.37313334]
[1757522528342,0.10620233,113780.0,113770.0,0.0221]
[1757522528542,0.10620233,113780.0,113770.0,0.37313334]
[1757522529544,0.11481867,113780.0,113770.0,0.37313334]
[1757522529750,0.11481867,113780.0,113770.0,0.19761667]
[1757522529952,0.10620233,113780.0,113770.0,0.37313334]
[1757522530350,0.11120233,113780.0,113770.0,0.37413334]
[1757522530851,0.11320233,113780.0,113770.0,0.37413334]
[1757522532248,0.00742,113780.0,113770.0,0.80653001]
[1757522532448,0.00742,113780.0,113770.0,0.89440521]
[1757522532953,0.00742,113780.0,113770.0,1.70636521]
[1757522534053,0.00542,113780.0,113770.0,1.70636521]
[1757522534350,0.00542,113780.0,113770.0,0.89440521]
[1757522534553,0.00142,113780.0,113770.0,0.51258936]
[1757522534754,0.00142,113780.0,113770.0,1.07450936]
[1757522535656,0.00142,113780.0,113770.0,0.33123376]
[1757522535859,0.00142,113780.0,113770.0,1.07446936]
[1757522536850,0.02408,113780.0,113770.0,0.26258936]
[1757522537058,0.03758,113780.0,113770.0,0.91146468]
[1757522537456,0.03758,113780.0,113770.0,0.13890468]
[1757522537651,0.03758,113780.0,113770.0,0.95070468]
[1757522537851,0.03758,113780.0,113770.0,0.8339]
[1757522538052,0.03758,113780.0,113770.0,0.95070468]
[1757522538954,0.03758,113780.0,113770.0,0.13890468]
[1757522539159,0.03758,113780.0,113770.0,0.95066468]
[1757522539550,0.03758,113780.0,113770.0,0.13890468]
[1757522539862,0.03758,113780.0,113770.0,0.25570936]
[1757522540161,0.02408,113780.0,113770.0,0.26258936]
[1757522540461,0.02408,113780.0,113770.0,0.02898]
[1757522540650,0.02408,113780.0,113770.0,0.14578468]
[1757522540855,0.03724,113780.0,113770.0,0.13890468]
[1757522552169,0.03724,113780.0,113770.0,0.0221]
[1757522552361,0.03724,113780.0,113770.0,0.13890468]
[1757522552762,0.03724,113780.0,113770.0,0.0221]
[1757522552964,0.03724,113780.0,113770.0,0.13890468]
[1757522556464,0.03724,113780.0,113770.0,0.0221]
[1757522556661,0.03724,113780.0,113770.0,0.13890468]
[1757522559261,0.03724,113780.0,113770.0,0.25570936]
[1757522559468,0.02408,113780.0,113770.0,0.14385468]
[1757522562773,0.03724,113780.0,113770.0,0.13890468]
[1757522564872,0.03724,113780.0,113770.0,0.0221]
[1757522565069,0.03724,113780.0,113770.0,0.13890468]
[1757522569183,0.03724,113780.0,113770.0,0.0221]
[1757522569374,0.03724,113780.0,113770.0,0.13890468]
[1757522569883,0.08432346,113780.0,113770.0,0.13890468]
[1757522570478,0.03724,113780.0,113770.0,0.13890468]
[1757522570677,0.28724,113780.0,113770.0,0.0221]
[1757522570879,0.03618,113770.0,113760.0,0.13815468]
[1757522571584,0.03618,113770.0,113760.0,0.25495936]
[1757522571781,0.10277364,113770.0,113760.0,0.25495936]
[1757522572285,0.05544949,113770.0,113760.0,0.25595936]
[1757522572480,0.09895082,113770.0,113760.0,0.25595936]
[1757522572680,0.11822031,113770.0,113760.0,0.25595936]
[1757522573087,0.18907882,113770.0,113760.0,0.25595936]
[1757522573383,0.18907882,113770.0,113760.0,0.25695936]
[1757522573584,0.18907882,113770.0,113760.0,0.26553936]
[1757522575188,0.18907882,113770.0,113760.0,0.03193]
[1757522575481,0.126308,113770.0,113760.0,0.26553936]
[1757522575686,0.12621641,113770.0,113760.0,0.26553936]
[1757522577287,0.113288,113770.0,113760.0,0.26553936]
[1757522577785,0.16055693,113770.0,113760.0,0.26553936]
[1757522579378,0.17357693,113770.0,113760.0,0.25695936]
[1757522579687,0.126308,113770.0,113760.0,0.25695936]
[1757522580073,0.17357118,113770.0,113760.0,0.25695936]
[1757522582284,0.126308,113770.0,113760.0,0.25695936]
[1757522587091,0.134893,113770.0,113760.0,0.25695936]
[1757522587984,0.134893,113770.0,113760.0,0.14015468]
[1757522588894,0.134893,113770.0,113760.0,0.25695936]
[1757522590288,0.134893,113770.0,113760.0,0.02335]
[1757522590586,0.134893,113770.0,113760.0,0.25695936]
[1757522591893,0.12628842,113770.0,113760.0,0.25695936]
[1757522592194,0.01924991,113770.0,113760.0,0.26562936]
[1757522593095,0.04240991,113770.0,113760.0,0.26562936]
[1757522595396,0.04240991,113770.0,113760.0,0.03202]
[1757522595596,0.04240991,113770.0,113760.0,0.26562936]
[1757522596296,0.01924991,113770.0,113760.0,0.38261536]
[1757522596889,0.04240991,113770.0,113760.0,0.38261536]
[1757522598506,0.05542991,113770.0,113760.0,0.02335]
[1757522598693,0.05542991,113770.0,113760.0,0.37394536]
[1757522598999,0.05663792,113770.0,113760.0,0.37394536]
[1757522600292,0.04361792,113770.0,113760.0,0.38261536]
[1757522601000,0.04361792,113770.0,113760.0,0.03202]
[1757522601201,0.05663792,113770.0,113760.0,0.37394536]
[1757522601403,0.04361792,113770.0,113760.0,0.38261536]
[1757522602301,0.02045792,113770.0,113760.0,0.03202]
[1757522602497,0.02045792,113770.0,113760.0,0.55791304]
[1757522602996,0.06782897,113780.0,113770.0,0.04509765]
[1757522603196,0.02056579,113780.0,113770.0,0.57099069]
[1757522603399,0.02056579,113780.0,113770.0,0.82099069]
[1757522603702,0.04768318,113800.0,113790.0,0.00999]
[1757522603894,0.04768318,113800.0,113790.0,0.38291536]
[1757522604294,0.00042,113800.0,113790.0,0.40042662]
[1757522605098,0.00442,113800.0,113790.0,0.40042662]
[1757522605597,0.00442,113800.0,113790.0,0.04983126]
[1757522605902,0.00442,113800.0,113790.0,0.40042662]
[1757522606498,0.00442,113800.0,113790.0,0.40908609]
[1757522606800,0.00442,113800.0,113790.0,0.40042662]
[1757522607191,0.00442,113800.0,113790.0,0.8257243]
[1757522608193,0.00442,113800.0,113790.0,0.913586]
[1757522608394,0.00042,113820.0,113790.0,0.913586]
[1757522608599,0.00042,113820.0,113810.0,0.38212536]
[1757522608794,0.02277,113820.0,113810.0,0.03153]
[1757522608993,0.02277,113820.0,113810.0,0.38212536]
[1757522609194,0.00042,113820.0,113810.0,0.38212536]
[1757522609394,0.00042,113820.0,113810.0,0.39971528]
[1757522610202,0.00342,113820.0,113810.0,0.39971528]
[1757522610599,0.00042,113820.0,113810.0,0.39971528]
[1757522610902,0.00342,113820.0,113810.0,0.39971528]
[1757522613004,0.00342,113820.0,113810.0,0.57501296]
[1757522613209,0.00342,113820.0,113810.0,0.39971528]
[1757522613505,0.00342,113820.0,113810.0,0.57501296]
[1757522614310,0.00342,113820.0,113810.0,0.39971528]
[1757522614908,0.02263906,113820.0,113810.0,0.39971528]
[1757522617509,0.02263906,113820.0,113810.0,0.57501296]
[1757522623113,0.00042,113840.0,113830.0,0.03232]
[1757522623306,0.01344,113860.0,113830.0,0.64604394]
[1757522623609,0.02277,113860.0,113850.0,0.55742304]
[1757522623918,0.00042,113860.0,113850.0,0.38212536]
[1757522624303,0.00042,113860.0,113850.0,0.55742304]
[1757522624512,0.00042,113860.0,113850.0,0.38212536]
[1757522624712,0.00042,113860.0,113850.0,0.55742304]
[1757522624908,0.00042,113860.0,113850.0,0.40025996]
[1757522625116,0.02277,113860.0,113850.0,0.40025996]
[1757522626115,0.02377,113860.0,113850.0,0.40025996]
[1757522626317,0.00142,113860.0,113850.0,0.40025996]
[1757522629704,0.00142,113860.0,113850.0,0.0496646]
[1757522630315,0.00142,113860.0,113850.0,0.40025996]
[1757522633209,0.00042,113860.0,113850.0,0.40025996]
[1757522634511,0.46119768,113860.0,113850.0,0.0404646]
[1757522634723,0.63649536,113860.0,113850.0,0.0404646]
[1757522635011,0.35225845,113860.0,113850.0,0.21576228]
[1757522635210,0.65559063,113860.0,113850.0,0.0404646]
[1757522636114,0.65559063,113860.0,113840.0,0.17529768]
[1757522636312,0.25789657,113850.0,113840.0,0.19769768]
[1757522636517,0.27699184,113850.0,113840.0,0.19769768]
[1757522637609,0.27699184,113850.0,113840.0,0.0224]
[1757522637809,0.27699184,113850.0,113840.0,0.19769768]
[1757522638312,0.47987295,113850.0,113840.0,0.0234]
[1757522638518,0.47987295,113850.0,113840.0,0.17629768]
[1757522638817,0.47987295,113850.0,113840.0,0.19869768]
[1757522639015,0.30457527,113850.0,113840.0,0.0234]
[1757522639219,0.30457527,113850.0,113840.0,0.20747768]
[1757522639518,0.30457527,113850.0,113840.0,0.03218]
[1757522639813,0.47987295,113850.0,113840.0,0.20747768]
[1757522640313,0.47987295,113850.0,113840.0,0.18507768]
[1757522640509,0.47987295,113850.0,113840.0,0.03218]
[1757522640712,0.47987295,113850.0,113840.0,0.18507768]
[1757522640915,0.47987295,113850.0,113840.0,0.20747768]
[1757522642217,0.30457527,113850.0,113840.0,0.20747768]
[1757522642423,0.35174413,113850.0,113840.0,0.20747768]
[1757522642612,0.52704181,113850.0,113840.0,0.20747768]
[1757522643119,0.47987295,113850.0,113840.0,0.00978]
[1757522643319,0.47987295,113850.0,113840.0,0.18507768]
[1757522643717,0.47987295,113850.0,113840.0,0.20747768]
[1757522644922,0.47987295,113850.0,113840.0,0.03218]
[1757522645123,0.47987295,113850.0,113840.0,0.20747768]
[1757522645623,0.52704689,113850.0,113840.0,0.20747768]
[1757522645923,0.52704689,113850.0,113840.0,0.38277536]
[1757522646320,0.52704689,113850.0,113840.0,0.20747768]
[1757522647227,0.52704689,113850.0,113840.0,0.38277536]
[1757522647421,0.10174921,113850.0,113840.0,0.38277536]
[1757522647922,0.10174921,113850.0,113840.0,0.03218]
[1757522648120,0.10174921,113850.0,113840.0,0.38277536]
[1757522648830,0.27704689,113850.0,113840.0,0.38277536]
[1757522652127,0.10174921,113850.0,113840.0,0.38277536]
[1757522652327,0.27704689,113850.0,113840.0,0.38277536]
[1757522653026,0.27704689,113850.0,113840.0,0.03218]
[1757522653528,0.10174921,113850.0,113840.0,0.38277536]
[1757522653720,0.27704689,113850.0,113840.0,0.38277536]
[1757522656320,0.10174921,113850.0,113840.0,0.1489153]
[1757522661332,0.05457527,113850.0,113840.0,0.1489153]
[1757522661717,0.09825082,113850.0,113840.0,0.1489153]
[1757522661922,0.11734609,113850.0,113840.0,0.1489153]
[1757522662328,0.11757242,113850.0,113840.0,0.1489153]
[1757522664132,0.05457527,113850.0,113840.0,0.1489153]
[1757522664431,0.11417038,113850.0,113840.0,0.1489153]
[1757522664631,0.13326565,113850.0,113840.0,0.1489153]
[1757522664831,0.05457527,113850.0,113840.0,0.03218]
[1757522665034,0.42131057,113850.0,113840.0,0.00978]
[1757522666228,0.50000095,113850.0,113840.0,0.00978]
[1757522666827,0.61673625,113850.0,113840.0,0.00978]
[1757522667225,0.53804587,113850.0,113840.0,0.00978]
[1757522668230,1.23203057,113850.0,113840.0,0.00978]
[1757522669136,1.34876587,113850.0,113810.0,0.01758992]
[1757522669325,0.19792516,113820.0,113810.0,0.02263]
[1757522669530,0.03388,113800.0,113790.0,0.15687656]
[1757522669729,0.08118436,113800.0,113790.0,0.15687656]
[1757522670027,0.10027963,113800.0,113790.0,0.15687656]
[1757522671334,0.10027963,113800.0,113790.0,0.04014126]
[1757522671634,0.10027963,113800.0,113790.0,0.15987656]
[1757522672134,0.05297527,113800.0,113790.0,0.15987656]
[1757522672926,0.04031527,113800.0,113790.0,0.16907656]
[1757522674722,0.04031527,113800.0,113790.0,0.16607656]
[1757522674926,0.04031527,113800.0,113790.0,0.16807656]
[1757522676939,0.04031527,113800.0,113790.0,0.53481186]
[1757522677637,0.01909527,113800.0,113790.0,0.53481186]
[1757522679034,0.03388,113820.0,113810.0,0.02263]
[1757522679234,0.05297012,113820.0,113810.0,0.1393653]
[1757522681244,0.05297012,113820.0,113810.0,0.02263]
[1757522681542,0.05297012,113820.0,113810.0,0.1393653]
[1757522681936,0.12496397,113820.0,113810.0,0.1393653]
[1757522682138,0.05297012,113820.0,113810.0,0.1393653]
[1757522685834,0.12154908,113820.0,113810.0,0.1393653]
[1757522687145,0.12154908,113820.0,113810.0,0.02263]
[1757522687344,0.23828438,113820.0,113810.0,0.1393653]
[1757522688640,0.23828438,113820.0,113790.0,0.02671126]
[1757522688947,0.1506153,113800.0,113790.0,0.02263]
[1757522689152,0.05297012,113800.0,113790.0,0.1393653]
[1757522689348,0.16970542,113800.0,113790.0,0.1393653]
[1757522689544,0.05297012,113800.0,113790.0,0.15690235]
[1757522691346,0.05297012,113800.0,113790.0,0.15790235]
[1757522700053,0.05297012,113800.0,113790.0,0.04116705]
[1757522700255,0.05297012,113800.0,113790.0,0.15790235]
[1757522702849,0.05297012,113800.0,113790.0,0.04116705]
[1757522703044,0.16970542,113800.0,113790.0,0.04116705]
[1757522703240,0.21700978,113800.0,113790.0,0.04116705]
[1757522704354,0.21700978,113800.0,113790.0,0.04112705]
[1757522706052,0.10027448,113800.0,113790.0,0.04112705]
[1757522706256,0.21700978,113800.0,113790.0,0.04112705]
[1757522706649,0.91091448,113800.0,113790.0,0.04112705]
[1757522706955,1.02764978,113800.0,113790.0,0.04112705]
[1757522707361,0.91091448,113800.0,113790.0,0.04112705]
[1757522707548,1.02764978,113800.0,113790.0,0.04112705]
[1757522709056,1.27764978,113800.0,113790.0,0.001]
[1757522709255,1.39438508,113800.0,113790.0,0.001]
[1757522709454,0.02158,113760.0,113750.0,0.02229]
[1757522709651,0.02158,113760.0,113750.0,0.1390253]
[1757522709652,0.05456012,113760.0,113750.0,0.1390253]
[1757522710860,0.05456012,113760.0,113750.0,0.02229]
[1757522711060,0.05456012,113760.0,113750.0,0.1430253]
[1757522711958,0.05456012,113760.0,113750.0,0.02629]
[1757522712362,0.05456012,113760.0,113750.0,0.1430253]
[1757522715659,0.17129542,113760.0,113750.0,0.02629]
[1757522715854,0.17129542,113760.0,113750.0,0.004]
[1757522716163,0.20053104,113760.0,113750.0,0.004]
[1757522716361,0.68459154,113760.0,113750.0,0.004]
[1757522717360,1.49535154,113760.0,113750.0,0.004]
[1757522717561,0.68459154,113760.0,113750.0,0.2016879]
[1757522717761,1.31995364,113760.0,113750.0,0.02629]
[1757522717953,1.14455574,113760.0,113750.0,0.2016879]
[1757522718158,1.49535154,113760.0,113750.0,0.2016879]
[1757522718566,1.49535154,113760.0,113750.0,0.1793979]
[1757522718767,1.49535154,113760.0,113750.0,0.004]
[1757522719068,1.49535154,113760.0,113750.0,0.00396]
[1757522719573,0.03547,113750.0,113740.0,0.1976879]
[1757522719771,0.22995802,113750.0,113740.0,0.1976879]
[1757522720771,0.22995802,113750.0,113740.0,0.2006879]
[1757522721267,0.84499802,113750.0,113740.0,0.2006879]
[1757522721466,1.04075802,113750.0,113740.0,0.2006879]
[1757522724272,1.04075802,113750.0,113740.0,0.02529]
[1757522724571,1.04075802,113750.0,113740.0,0.2006879]
[1757522724773,0.22995802,113750.0,113740.0,0.2006879]
[1757522724975,1.04079802,113750.0,113740.0,0.2006879]
[1757522727070,0.22995802,113750.0,113740.0,0.2006879]
[1757522727272,0.01909012,113750.0,113740.0,0.8106837]
[1757522727575,0.02054439,113760.0,113750.0,0.03303]
[1757522727770,0.06114533,113760.0,113750.0,0.3838258]
[1757522729879,0.06114533,113760.0,113750.0,0.3858258]
[1757522731077,0.07498533,113760.0,113750.0,0.3858258]
[1757522731280,0.0749973,113760.0,113750.0,0.3760458]
[1757522732279,0.0749973,113760.0,113750.0,0.3780458]
[1757522733074,0.0749973,113760.0,113750.0,0.2026479]
[1757522733578,0.0749973,113760.0,113750.0,0.3780458]
[1757522733876,0.0749973,113760.0,113750.0,0.02725]
[1757522734083,0.0749973,113760.0,113750.0,0.3780458]
[1757522735772,0.0611573,113760.0,113750.0,0.3878258]
[1757522736086,0.0396073,113760.0,113750.0,0.3878258]
[1757522736381,0.0611573,113760.0,113750.0,0.3878258]
[1757522739884,0.0396073,113760.0,113750.0,0.3878258]
[1757522740687,0.0611573,113760.0,113750.0,0.3878258]
[1757522742294,0.0749973,113760.0,113750.0,0.2026479]
[1757522743694,0.2503952,113760.0,113750.0,0.02725]
[1757522743891,1.4865131,113760.0,113750.0,0.004]
[1757522744190,1.53371519,113760.0,113750.0,0.004]
[1757522744389,0.03539,113740.0,113730.0,0.1986479]
[1757522744590,0.22985081,113740.0,113730.0,0.1986479]
[1757522745787,0.22985081,113740.0,113730.0,0.1996479]
[1757522746189,0.67553996,113740.0,113730.0,0.02425]
[1757522747191,0.67553996,113740.0,113730.0,0.004]
[1757522747392,0.67553996,113740.0,113730.0,0.02725]
[1757522747592,0.67553996,113740.0,113730.0,0.004]
[1757522748093,0.67553996,113740.0,113730.0,0.001]
[1757522748292,0.67553996,113740.0,113730.0,0.02425]
[1757522748793,0.67553996,113740.0,113730.0,0.1996479]
[1757522749197,0.67553996,113740.0,113730.0,0.1996079]
[1757522749493,0.67553996,113740.0,113730.0,0.02421]
[1757522749694,0.67553996,113740.0,113730.0,0.1996079]
[1757522750694,0.50014206,113740.0,113730.0,0.1996079]
[1757522752298,0.54734415,113740.0,113730.0,0.1996079]
[1757522752499,1.18266625,113740.0,113730.0,0.1996079]
[1757522752799,1.35806415,113740.0,113730.0,0.1996079]
[1757522753095,1.31086206,113740.0,113730.0,0.1996079]
[1757522753801,1.31086206,113740.0,113730.0,0.02421]
[1757522753991,1.31086206,113740.0,113730.0,0.1996079]
[1757522755401,1.31086206,113740.0,113730.0,0.02421]
[1757522755603,1.31086206,113740.0,113730.0,0.1996079]
[1757522756397,1.31086206,113740.0,113730.0,0.02421]
[1757522756597,1.31086206,113740.0,113730.0,0.1996079]
[1757522758696,1.31082206,113740.0,113730.0,0.1996079]
[1757522759600,1.13542416,113740.0,113730.0,0.1996079]
[1757522759802,0.50014206,113740.0,113730.0,0.1996079]
[1757522759999,1.31082206,113740.0,113730.0,0.1996079]
[1757522761603,0.07474416,113740.0,113730.0,0.1996079]
[1757522761806,0.06090416,113740.0,113730.0,0.6349558]
[1757522762205,0.07451416,113740.0,113730.0,0.4496079]
[1757522762405,0.24991206,113740.0,113730.0,0.4496079]
[1757522762606,0.24991206,113740.0,113730.0,0.1996079]
[1757522762996,0.42530996,113740.0,113730.0,0.00096]
[1757522763400,0.42530996,113740.0,113730.0,0.02308]
[1757522763606,0.42530996,113740.0,113730.0,0.1984779]
[1757522763998,0.07451416,113740.0,113730.0,0.02308]
[1757522764201,0.07451416,113740.0,113730.0,0.1984779]
[1757522764202,0.27883416,113740.0,113730.0,0.1984779]
[1757522765306,0.07447416,113740.0,113730.0,0.1984779]
[1757522765617,0.07447416,113740.0,113730.0,0.3738758]
[1757522765906,0.06086416,113740.0,113730.0,0.6338658]
[1757522767312,0.03935416,113740.0,113730.0,0.6338658]
[1757522768409,0.03935416,113740.0,113730.0,0.7217707]
[1757522768611,0.02029125,113740.0,113730.0,0.8092637]
[1757522768813,0.02029125,113740.0,113730.0,0.6338658]
[1757522771707,0.02029125,113740.0,113730.0,0.7217707]
[1757522772312,0.03928875,113740.0,113730.0,0.6338658]
[1757522774616,0.03928875,113740.0,113730.0,0.8971686]
[1757522775018,0.03928875,113740.0,113730.0,0.7217707]
[1757522776015,0.03928875,113740.0,113730.0,1.5322107]
[1757522776215,0.03928875,113740.0,113730.0,1.7076086]
[1757522778013,0.03928875,113740.0,113730.0,0.8971686]
[1757522778318,0.03928875,113740.0,113730.0,1.53203404]
[1757522778518,0.02029125,113740.0,113730.0,1.53203404]
[1757522779213,0.02029125,113740.0,113730.0,1.41514766]
[1757522780013,0.02029125,113740.0,113730.0,0.60474766]
[1757522780319,0.03927898,113740.0,113730.0,1.41514766]
[1757522780910,0.03927898,113740.0,113730.0,1.48477951]
[1757522781517,0.02029125,113740.0,113730.0,1.48477951]
[1757522781713,0.02029125,113740.0,113730.0,0.67437951]
[1757522781920,0.02029125,113740.0,113730.0,1.48473951]
[1757522782307,0.03930631,113740.0,113730.0,1.48473951]
[1757522782519,0.03930631,113740.0,113730.0,1.48469951]
[1757522784612,0.03930631,113740.0,113730.0,0.67437951]
[1757522784812,0.03930631,113740.0,113730.0,1.48469951]
[1757522785420,0.03930631,113740.0,113730.0,0.58647461]
[1757522785721,0.03930631,113740.0,113730.0,1.39675461]
[1757522787714,0.03930631,113740.0,113730.0,0.58647461]
[1757522787916,0.03930631,113740.0,113730.0,1.39671461]
[1757522790924,0.03930631,113740.0,113730.0,1.39667461]
[1757522795629,0.01901506,113740.0,113730.0,1.39667461]
[1757522796428,0.01901506,113740.0,113730.0,1.48457991]
[1757522796625,0.01901506,113740.0,113730.0,1.39667461]
[1757522798031,0.01901506,113740.0,113730.0,1.60146629]
[1757522798221,0.01901506,113740.0,113730.0,1.35146629]
[1757522798416,0.15280309,113770.0,113750.0,0.0325]
[1757522798629,0.06806864,113770.0,113760.0,0.26677276]
[1757522799028,0.09006864,113770.0,113760.0,0.26677276]
[1757522799524,0.04686655,113770.0,113760.0,0.26677276]
[1757522799732,0.05999655,113770.0,113760.0,1.07681276]
[1757522801632,0.05599655,113770.0,113760.0,1.07681276]
[1757522801931,0.05799655,113770.0,113760.0,1.07681276]
[1757522802133,0.05799655,113770.0,113760.0,0.25678276]
[1757522802426,0.10519864,113770.0,113760.0,0.68614276]
[1757522802731,0.10519864,113770.0,113760.0,0.25678276]
[1757522803522,0.09206864,113770.0,113760.0,0.26677276]
[1757522805234,0.10519864,113770.0,113760.0,0.26677276]
[1757522807732,0.09206864,113770.0,113760.0,0.26677276]
[1757522810325,0.11100626,113770.0,113760.0,0.26677276]
[1757522810726,0.11100626,113770.0,113760.0,0.25678276]
[1757522810727,0.12413626,113770.0,113760.0,0.25678276]
[1757522812333,0.07693417,113770.0,113760.0,0.25678276]
[1757522818233,0.02093762,113770.0,113760.0,0.63365914]
[1757522820534,0.04353762,113770.0,113760.0,0.51677276]
[1757522822338,0.05621762,113770.0,113760.0,0.25678276]
[1757522823239,0.05621762,113770.0,113760.0,0.26677276]
[1757522823240,0.04353762,113770.0,113760.0,0.26677276]
[1757522824047,0.05621762,113770.0,113760.0,0.25678276]
[1757522824744,0.30621762,113770.0,113760.0,0.13989638]
[1757522825044,0.423104,113770.0,113760.0,0.13989638]
[1757522825242,0.30621762,113770.0,113760.0,0.13989638]
[1757522826243,0.423104,113770.0,113760.0,0.13989638]
[1757522827138,0.47030609,113770.0,113760.0,0.13989638]
[1757522829456,0.423104,113770.0,113760.0,0.13989638]
[1757522830752,0.30621762,113770.0,113760.0,0.13989638]